Workbook

Sheet Relatório Liquidação
X1: -4.183675628e-11
E2: CRI Barretos Country - Mapa de Liquidação
B7: Natureza do Pagamento | C7: Série | D7: Data | E7: PU Liquidação | F7: Quantidade | G7: Lançamento | H7: Razão Social | I7: CNPJ | J7: Número | K7: Banco | L7: Agência | M7: Conta | N7: ISS | O7: Valor do Serviço | P7: Gross-Up | Q7: Valor Bruto NF | R7: Retenção NF | S7: Retenção | T7: Valor | U7: Observação
B8: Integralização | C8: 477 | D8: 2021-01-18 | E8: 1000 | F8: 6600 | G8: Integralização | T8: =E8*F8 -> 6600000
B9: Integralização | C9: 478 | D9: 2021-01-18 | E9: 1000 | F9: 4400 | G9: Integralização | T9: =E9*F9 -> 4400000
B10: Integralização | C10: Total Dia | G10: Total Integralização | T10: =SUM(T8:T9) -> 11000000 | W10: =T10+T47 -> 15000000
B11: Transferência | G11: Fee Estruturação | H11: TForte Participação Ltda | I11: 21.567.223/0001-05 | J11: 341 | K11: Itaú Unibanco S.A. | L11: 0869-8 | M11: 12663-1 | N11: N/A | O11: 80000 | P11: 0.1115 | Q11: =O11/(1-P11) -> 90039.39223 | R11: 0.0615 | S11: =R11*Q11 -> 5537.422622 | T11: =Q11*(1-R11) -> 84501.96961 | U11: =O11/$T$10 -> 0.007272727273 | W11: =0.5%*W10 -> 75000
B12: Transferência | G12: Taxa de Sucesso | H12: TForte Participação Ltda | I12: 21.567.223/0001-05 | J12: 341 | K12: Itaú Unibanco S.A. | L12: 0869-8 | M12: 12663-1 | N12: N/A | O12: 275000 | P12: 0.1115 | Q12: 309510.4108 | R12: 0.0615 | S12: =R12*Q12 -> 19034.89026 | T12: 290475.5205 | U12: =O12/$T$10 -> 0.025
B13: Transferência | G13: Comissão Firme | H13: TForte Participação Ltda | I13: 21.567.223/0001-05 | J13: 341 | K13: Itaú Unibanco S.A. | L13: 0869-8 | M13: 12663-1 | N13: N/A | O13: 110000 | P13: 0.1115 | Q13: 123804.1643 | R13: 0.0615 | S13: =+R13*Q13 -> 7613.956106 | T13: 116190.2082 | U13: 0.01
B14: Aguardar Transferência | G14: Despachante | H14: DUUDOCS SERVICOS ADMINISTRATIVOS LTDA | I14: 32.437.359/0001-17 | J14: 341 | K14: Itaú Unibanco S.A. | L14: 0350 | M14: 32511-4 | N14: N/A | O14: 4800 | P14: 0 | Q14: 4800 | R14: 0 | S14: 0 | T14: 4800
B15: Aguardar Transferência | G15: Advogados - Assessoria | H15: Madeira, Valentin & Gallardo Sociedade de Advogados | I15: 14.150.382/0001-44 | J15: 341 | K15: Itaú Unibanco S.A. | L15: 0445 | M15: 19299-0 | N15: N/A | O15: 72000 | P15: 0 | Q15: 72000 | R15: 0.0615 | S15: 4428 | T15: 67572
B16: Aguardar Transferência | G16: Coordenador Líder | H16: Forte Securitizadora S/A | I16: 12.979.898/0001-70 | J16: 341 | K16: Itaú Unibanco S.A. | L16: 0869 | M16: 13447-8 | N16: N/A | O16: 25000 | P16: 0.0965 | Q16: 27670.17156 | R16: 0.0615 | S16: 1701.715551 | T16: 25968.456
B17: Aguardar Transferência | G17: Engenharia | H17: HARCA ENGENHARIA EIRELI - ME | I17: 20.620.442/0001-48 | J17: 003 | K17: Caixa Econômica Federal | L17: 1959 | M17: 00000620-5 | N17: SIM | O17: 5000 | P17: 0 | Q17: 5000 | R17: 0 | S17: =+R17*Q17 -> 0 | T17: 5000
B18: Aguardar Transferência | G18: Auditoria Financeira | H18: CONVESTE AUDFILES SERVICOS FINANCEIROS LTDA | I18: 29.758.816/0001-60 | J18: 341 | K18: Itaú Unibanco S.A. | L18: 6630 | M18: 43542-5 | N18: N/A | O18: 111000 | P18: 0.1115 | Q18: 124929.6567 | R18: 0.0615 | S18: 7683.173889 | T18: =Q18*(1-R18) -> 117246.4828
B19: Aguardar Transferência | G19: Implantação | H19: CONVESTE AUDFILES SERVICOS FINANCEIROS LTDA | I19: 29.758.816/0001-60 | J19: 341 | K19: Itaú Unibanco S.A. | L19: 6630 | M19: 43542-5 | N19: N/A | O19: 24000 | P19: 0.1115 | Q19: 27011.81767 | R19: 0.0615 | S19: 1661.226787 | T19: =Q19*(1-R19) -> 25350.59088
B20: Aguardar Transferência | G20: Agente Fiduciário | H20: SIMPLIFIC PAVARINI DISTRIBUIDORA DE TÍTULOS E VALORES MOBILIÁRIOS LTDA. | I20: 15.227.994/0001-50 | J20: 237 | K20: Banco Bradesco S.A. | L20: 3428-2 | M20: 714.443-1 | N20: N/A | O20: 18000 | P20: 0.0965 | Q20: 19922.52352 | R20: 0.0615 | S20: 1225.235196 | T20: =Q20*(1-R20) -> 18697.28832
B21: Aguardar Transferência | G21: Agente Custodiante | H21: SIMPLIFIC PAVARINI DISTRIBUIDORA DE TÍTULOS E VALORES MOBILIÁRIOS LTDA. | I21: 15.227.994/0001-50 | J21: 237 | K21: Banco Bradesco S.A. | L21: 3428-2 | M21: 714.443-1 | N21: N/A | O21: 3500 | P21: 0.0965 | Q21: 3873.824018 | R21: 0.0615 | S21: 238.2401771 | T21: =Q21*(1-R21) -> 3635.583841
B22: Aguardar Transferência | G22: Agente Registrador CCI | H22: SIMPLIFIC PAVARINI DISTRIBUIDORA DE TÍTULOS E VALORES MOBILIÁRIOS LTDA. | I22: 15.227.994/0001-50 | J22: 237 | K22: Banco Bradesco S.A. | L22: 3428-2 | M22: 714.443-1 | N22: N/A | O22: 72000 | P22: 0.0965 | Q22: =O22/(1-P22) -> 79690.09408 | R22: 0.0615 | S22: 4900.940786 | T22: 74789.15329
B23: Provisão de Despesas | G23: Registro CCI B3 (Débito Automático) | H23: Forte Securitizadora S/A | I23: 12.979.898/0001-70 | S23: 0 | T23: 1102
B24: Provisão de Despesas | G24: Registro CRI B3 (Débito Automático) | H24: Forte Securitizadora S/A | I24: 12.979.898/0001-70 | S24: 0 | T24: 11020
B25: Provisão de Despesas | G25: Custos Mov. CRI/CCI B3 (Estimado-Deb. Aut.) | H25: Forte Securitizadora S/A | I25: 12.979.898/0001-70 | S25: 0 | T25: 15350
B26: Provisão de Despesas | G26: Análise B3 | H26: Forte Securitizadora S/A | I26: 12.979.898/0001-70 | S26: =+R26*Q26 -> 0 | T26: 0
B27: Provisão de Despesas | G27: Taxa de Registro - Anbima | H27: Forte Securitizadora S/A | I27: 12.979.898/0001-70 | S27: =+R27*Q27 -> 0 | T27: 1533
B28: Provisão de Despesas | G28: Rating | H28: Forte Securitizadora S/A | I28: 12.979.898/0001-70 | S28: =+R28*Q28 -> 0 | T28: 26700
G29: Retenção de Impostos sobre NFs | T29: =SUM(T30:T35) -> 54024.80138
B30: Retenção de Impostos | G30: Imposto - TForte Participação Ltda | H30: TForte Participação Ltda | I30: 21.567.223/0001-05 | T30: =SUMIF($I$11:$I$28,I30,$S$11:$S$28) -> 32186.26899
B31: Retenção de Impostos | G31: Imposto - Assessor Legal | H31: Madeira, Valentin & Gallardo Sociedade de Advogados | I31: 14.150.382/0001-44 | T31: =SUMIF($I$11:$I$27,I31,$S$11:$S$27) -> 4428
B32: Retenção de Impostos | G32: Imposto - Coordenador Líder | H32: Forte Securitizadora S/A | I32: 12.979.898/0001-70 | T32: =SUMIF($I$11:$I$27,I32,$S$11:$S$27) -> 1701.715551
B33: Retenção de Impostos | G33: Imposto - Engenharia | H33: HARCA ENGENHARIA EIRELI - ME | I33: 20.620.442/0001-48 | T33: =SUMIF($I$11:$I$27,I33,$S$11:$S$27) -> 0
B34: Retenção de Impostos | G34: Imposto - Auditoria | H34: CONVESTE AUDFILES SERVICOS FINANCEIROS LTDA | I34: 29.758.816/0001-60 | T34: =SUMIF($I$11:$I$27,I34,$S$11:$S$27) -> 9344.400675
B35: Retenção de Impostos | G35: Imposto - Agente Fiduciário | H35: SIMPLIFIC PAVARINI DISTRIBUIDORA DE TÍTULOS E VALORES MOBILIÁRIOS LTDA. | I35: 15.227.994/0001-50 | T35: =SUMIF($I$11:$I$27,I35,$S$11:$S$27) -> 6364.416159 | Y35: Integralização
B36: Transferência | G36: Retenção de PMT | H36: Forte Securitizadora S/A | I36: 12.979.898/0001-70 | J36: 341 | K36: Itaú Unibanco S.A. | L36: 0393 | M36: 28259-5 | T36: 212321.41
B37: Transferência | G37: CAPITAL DE GIRO | H37: BARRETOS COUNTRY EMPREENDIMENTOS IMOBILIARIOS SPE LTDA | I37: 25.144.267/0001-83 | J37: 33 | K37: Santander | L37: 0021 | M37: 130057160 | T37: 2439101.6
B38: Transferência | G38: CAPITAL DE GIRO - Cartões | H38: BARRETOS COUNTRY EMPREENDIMENTOS IMOBILIARIOS SPE LTDA | I38: 25.144.267/0001-83 | J38: 33 | K38: Santander | L38: 0021 | M38: 130057160 | T38: 262817.8
B39: Transferência | G39: CCG - CONTA CORRENTE GARANTIDA DUPLIC MENSAL | H39: BARRETOS COUNTRY EMPREENDIMENTOS IMOBILIARIOS SPE LTDA | I39: 25.144.267/0001-83 | J39: 33 | K39: Santander | L39: 0021 | M39: 130057160 | T39: 2516629.57
B40: Aguardar Transferência | G40: Quitação de Dividas | T40: 31825.91
B41: Transferência | G41: Fundo de Reserva | H41: Forte Securitizadora S/A | I41: 12.979.898/0001-70 | J41: 341 | K41: Itaú Unibanco S.A. | L41: 0393 | M41: 28259-5 | T41: 604055
B42: Transferência | G42: Fundo de Obra | H42: Forte Securitizadora S/A | I42: 12.979.898/0001-70 | J42: 341 | K42: Itaú Unibanco S.A. | L42: 0393 | M42: 28259-5 | T42: 3989291.66
B43: Total Dia | T43: =-SUM(-T10,T11:T29,T36:T42) -> -0.004926770926 | Y43: Reembolso Forte
B45: Integralização | C45: 479 | D45: 2021-02-24 | E45: 1000 | F45: 2400 | G45: Integralização | T45: =E45*F45 -> 2400000
B46: Integralização | C46: 480 | D46: 2021-02-24 | E46: 1000 | F46: 1600 | G46: Integralização | T46: =E46*F46 -> 1600000
B47: Integralização | C47: Total Dia | G47: Total Integralização | T47: =SUM(T45:T46) -> 4000000
B48: Transferência | G48: Fee Estruturação | H48: TForte Participação Ltda | I48: 21.567.223/0001-05 | J48: 341 | K48: Itaú Unibanco S.A. | L48: 0869-8 | M48: 12663-1 | N48: N/A | O48: =0.5%*$T$47 -> 20000 | P48: 0.1115 | Q48: =O48/(1-P48) -> 22509.84806 | R48: 0.0615 | S48: =R48*Q48 -> 1384.355656 | T48: =Q48*(1-R48) -> 21125.4924
B49: Transferência | G49: Taxa de Sucesso | H49: TForte Participação Ltda | I49: 21.567.223/0001-05 | J49: 341 | K49: Itaú Unibanco S.A. | L49: 0869-8 | M49: 12663-1 | N49: N/A | O49: =0.025*$T$47 -> 100000 | P49: 0.1115 | Q49: =O49/(1-P49) -> 112549.2403 | R49: 0.0615 | S49: =R49*Q49 -> 6921.778278 | T49: =Q49*(1-R49) -> 105627.462
B50: Transferência | G50: Comissão Firme | H50: TForte Participação Ltda | I50: 21.567.223/0001-05 | J50: 341 | K50: Itaú Unibanco S.A. | L50: 0869-8 | M50: 12663-1 | N50: N/A | O50: =0.01*T47 -> 40000 | P50: 0.1115 | Q50: =O50/(1-P50) -> 45019.69612 | R50: 0.0615 | S50: =+R50*Q50 -> 2768.711311 | T50: =Q50*(1-R50) -> 42250.98481
G51: Retenção de Impostos sobre NFs | T51: =SUM(T52:T52) -> 11074.84524
B52: Retenção de Impostos | G52: Imposto - TForte Participação Ltda | H52: TForte Participação Ltda | I52: 21.567.223/0001-05 | T52: =SUMIF($I$48:$I$50,I52,$S$48:$S$50) -> 11074.84524
B53: Transferência | G53: Fundo de Reserva | H53: Forte Securitizadora S/A | I53: 12.979.898/0001-70 | J53: 341 | K53: Itaú Unibanco S.A. | L53: 0393 | M53: 28259-5 | T53: 225326.57
B54: Transferência | G54: Fundo de Despesa | H54: Forte Securitizadora S/A | I54: 12.979.898/0001-70 | J54: 341 | K54: Itaú Unibanco S.A. | L54: 0393 | M54: 28259-5 | T54: =T47-T49-T50-T53-T55-T51-T48 -> 3195908.179
B55: Transferência | G55: PMT | H55: Forte Securitizadora S/A | I55: 12.979.898/0001-70 | J55: 341 | K55: Itaú Unibanco S.A. | L55: 0393 | M55: 28259-5 | T55: 398686.4668
B57: Integralização | C57: 479 | D57: 2021-02-26 | E57: 1003.339905 | F57: 2400 | G57: Integralização | T57: =E57*F57 -> 2408015.772
B58: Integralização | C58: 480 | D58: 2021-02-26 | E58: 1003.728943 | F58: 1600 | G58: Integralização | T58: =E58*F58 -> 1605966.309
B59: Integralização | C59: Total Dia | G59: Total Integralização | T59: =SUM(T57:T58) -> 4013982.081
B60: Transferência | G60: Fee Estruturação | H60: TForte Participação Ltda | I60: 21.567.223/0001-05 | J60: 341 | K60: Itaú Unibanco S.A. | L60: 0869-8 | M60: 12663-1 | N60: N/A | O60: =0.5%*T59 -> 20069.9104 | P60: 0.1115 | Q60: =O60/(1-P60) -> 22588.53169 | R60: 0.0615 | S60: =R60*Q60 -> 1389.194699 | T60: =Q60*(1-R60) -> 21199.33699
B61: Transferência | G61: Taxa de Sucesso | H61: TForte Participação Ltda | I61: 21.567.223/0001-05 | J61: 341 | K61: Itaú Unibanco S.A. | L61: 0869-8 | M61: 12663-1 | N61: N/A | O61: =2.5%*T59 -> 100349.552 | P61: 0.1115 | Q61: =O61/(1-P61) -> 112942.6584 | R61: 0.0615 | S61: =R61*Q61 -> 6945.973494 | T61: =Q61*(1-R61) -> 105996.6849
B62: Transferência | G62: Comissão Firme | H62: TForte Participação Ltda | I62: 21.567.223/0001-05 | J62: 341 | K62: Itaú Unibanco S.A. | L62: 0869-8 | M62: 12663-1 | N62: N/A | O62: =1%*T59 -> 40139.82081 | P62: 0.1115 | Q62: =O62/(1-P62) -> 45177.06338 | R62: 0.0615 | S62: =+R62*Q62 -> 2778.389398 | T62: =Q62*(1-R62) -> 42398.67398
G63: Retenção de Impostos sobre NFs | T63: =SUM(T64:T64) -> 11113.55759
B64: Retenção de Impostos | G64: Imposto - TForte Participação Ltda | H64: TForte Participação Ltda | I64: 21.567.223/0001-05 | T64: =SUMIF($I$48:$I$50,I64,$S$60:$S$62) -> 11113.55759
B65: Transferência | G65: Fundo de Reserva | H65: Forte Securitizadora S/A | I65: 12.979.898/0001-70 | J65: 341 | K65: Itaú Unibanco S.A. | L65: 0393 | M65: 28259-5 | T65: 228330.53
B66: Transferência | G66: Retenção PMT | H66: Forte Securitizadora S/A | I66: 12.979.898/0001-70 | J66: 341 | K66: Itaú Unibanco S.A. | L66: 0393 | M66: 28259-5 | T66: 106398.04
B67: Transferência | G67: Fundo de Despesa | H67: Forte Securitizadora S/A | I67: 12.979.898/0001-70 | J67: 341 | K67: Itaú Unibanco S.A. | L67: 0393 | M67: 28259-5 | T67: =T59-T60-T61-T62-T64-T65-T66 -> 3498545.257
B69: Integralização | C69: 479 | D69: 2021-04-20 | E69: 998.3557991 | F69: 900 | G69: Integralização | T69: =E69*F69 -> 898520.2192
B70: Integralização | C70: 480 | D70: 2021-04-20 | E70: 1001.549299 | F70: 600 | G70: Integralização | T70: =E70*F70 -> 600929.5797
B71: Integralização | C71: Total Dia | G71: Total Integralização | T71: =SUM(T69:T70) -> 1499449.799
B72: Transferência | G72: Fee Estruturação | H72: TForte Participação Ltda | I72: 21.567.223/0001-05 | J72: 341 | K72: Itaú Unibanco S.A. | L72: 0869-8 | M72: 12663-1 | N72: N/A | O72: =0.5%*T71 -> 7497.248994 | P72: 0.1115 | Q72: =O72/(1-P72) -> 8438.096786 | R72: 0.0615 | S72: =R72*Q72 -> 518.9429523 | T72: =Q72*(1-R72) -> 7919.153833
B73: Transferência | G73: Taxa de Sucesso | H73: TForte Participação Ltda | I73: 21.567.223/0001-05 | J73: 341 | K73: Itaú Unibanco S.A. | L73: 0869-8 | M73: 12663-1 | N73: N/A | O73: =2.5%*T71 -> 37486.24497 | P73: 0.1115 | Q73: =O73/(1-P73) -> 42190.48393 | R73: 0.0615 | S73: =R73*Q73 -> 2594.714762 | T73: =Q73*(1-R73) -> 39595.76917
B74: Transferência | G74: Comissão Firme | H74: TForte Participação Ltda | I74: 21.567.223/0001-05 | J74: 341 | K74: Itaú Unibanco S.A. | L74: 0869-8 | M74: 12663-1 | N74: N/A | O74: =1%*T71 -> 14994.49799 | P74: 0.1115 | Q74: =O74/(1-P74) -> 16876.19357 | R74: 0.0615 | S74: =+R74*Q74 -> 1037.885905 | T74: =Q74*(1-R74) -> 15838.30767
G75: Retenção de Impostos sobre NFs | T75: =SUM(T76:T76) -> 4151.543619
B76: Retenção de Impostos | G76: Imposto - TForte Participação Ltda | H76: TForte Participação Ltda | I76: 21.567.223/0001-05 | T76: =SUMIF($I$48:$I$50,I76,$S$72:$S$74) -> 4151.543619
B77: Transferência | G77: Fundo de Reserva | H77: Forte Securitizadora S/A | I77: 12.979.898/0001-70 | J77: 341 | K77: Itaú Unibanco S.A. | L77: 0393 | M77: 28259-5 | T77: 83273.93
B78: Transferência | G78: Retenção PMT | H78: Forte Securitizadora S/A | I78: 12.979.898/0001-70 | J78: 341 | K78: Itaú Unibanco S.A. | L78: 0393 | M78: 28259-5 | T78: 46132.18
B79: Transferência | G79: Livre Destinação | H79: BARRETOS COUNTRY EMPREENDIMENTOS IMOBILIARIOS SPE LTDA | I79: 25.144.267/0001-83 | J79: 33 | K79: Santander | L79: 0021 | M79: 130057160 | T79: =T71-T72-T73-T74-T76-T77-T78 -> 1302538.915
B81: Integralização | C81: 479 | D81: 2021-08-12 | E81: 1015.504725 | F81: 900 | G81: Integralização | T81: =E81*F81 -> 913954.2524
B82: Integralização | C82: 480 | D82: 2021-08-12 | E82: 1021.563771 | F82: 600 | G82: Integralização | T82: =E82*F82 -> 612938.2629
B83: Integralização | C83: Total Dia | G83: Total Integralização | T83: =SUM(T81:T82) -> 1526892.515
B84: Transferência | G84: Fee Estruturação | H84: TForte Participação Ltda | I84: 21.567.223/0001-05 | J84: 341 | K84: Itaú Unibanco S.A. | L84: 0869-8 | M84: 12663-1 | N84: N/A | O84: =0.5%*T83 -> 7634.462577 | P84: 0.1115 | Q84: =O84/(1-P84) -> 8592.52963 | R84: 0.0615 | S84: =R84*Q84 -> 528.4405723 | T84: =Q84*(1-R84) -> 8064.089058
B85: Transferência | G85: Taxa de Sucesso | H85: TForte Participação Ltda | I85: 21.567.223/0001-05 | J85: 341 | K85: Itaú Unibanco S.A. | L85: 0869-8 | M85: 12663-1 | N85: N/A | O85: =2.5%*T83 -> 38172.31288 | P85: 0.1115 | Q85: =O85/(1-P85) -> 42962.64815 | R85: 0.0615 | S85: =R85*Q85 -> 2642.202861 | T85: =Q85*(1-R85) -> 40320.44529
B86: Transferência | G86: Comissão Firme | H86: TForte Participação Ltda | I86: 21.567.223/0001-05 | J86: 341 | K86: Itaú Unibanco S.A. | L86: 0869-8 | M86: 12663-1 | N86: N/A | O86: =1%*T83 -> 15268.92515 | P86: 0.1115 | Q86: =O86/(1-P86) -> 17185.05926 | R86: 0.0615 | S86: =+R86*Q86 -> 1056.881145 | T86: =Q86*(1-R86) -> 16128.17812
G87: Retenção de Impostos sobre NFs | T87: =SUM(T88:T88) -> 4227.524578
B88: Retenção de Impostos | G88: Imposto - TForte Participação Ltda | H88: TForte Participação Ltda | I88: 21.567.223/0001-05 | T88: =SUM(S84:S86) -> 4227.524578
B89: Transferência | G89: Fundo de Reserva | H89: Forte Securitizadora S/A | I89: 12.979.898/0001-70 | J89: 341 | K89: Itaú Unibanco S.A. | L89: 0393 | M89: 28259-5 | T89: 79477.67
B90: Transferência | G90: Retenção PMT | H90: Forte Securitizadora S/A | I90: 12.979.898/0001-70 | J90: 341 | K90: Itaú Unibanco S.A. | L90: 0393 | M90: 28259-5 | T90: 39806.86
B91: Transferência | G91: Livre Destinação | H91: BARRETOS COUNTRY EMPREENDIMENTOS IMOBILIARIOS SPE LTDA | I91: 25.144.267/0001-83 | J91: 33 | K91: Santander | L91: 0021 | M91: 130057160 | T91: =T83-T84-T85-T86-T88-T89-T90 -> 1338867.748
B93: Integralização | C93: 481 | D93: 2021-08-16 | E93: 1000 | F93: 900 | G93: Integralização | T93: =E93*F93 -> 900000
B94: Integralização | C94: 482 | D94: 2021-08-16 | E94: 1000 | F94: 600 | G94: Integralização | T94: =E94*F94 -> 600000
B95: Integralização | C95: Total Dia | G95: Total Integralização | T95: =SUM(T93:T94) -> 1500000
B96: Transferência | G96: Fee Estruturação | H96: TForte Participação Ltda | I96: 21.567.223/0001-05 | J96: 341 | K96: Itaú Unibanco S.A. | L96: 0869-8 | M96: 12663-1 | N96: N/A | O96: =0.5%*T95 -> 7500 | P96: 0.1115 | Q96: =O96/(1-P96) -> 8441.193022 | R96: 0.0615 | S96: =R96*Q96 -> 519.1333708 | T96: =Q96*(1-R96) -> 7922.059651
B97: Transferência | G97: Taxa de Sucesso | H97: TForte Participação Ltda | I97: 21.567.223/0001-05 | J97: 341 | K97: Itaú Unibanco S.A. | L97: 0869-8 | M97: 12663-1 | N97: N/A | O97: =2.5%*T95 -> 37500 | P97: 0.1115 | Q97: =O97/(1-P97) -> 42205.96511 | R97: 0.0615 | S97: =R97*Q97 -> 2595.666854 | T97: =Q97*(1-R97) -> 39610.29826
B98: Transferência | G98: Comissão Firme | H98: TForte Participação Ltda | I98: 21.567.223/0001-05 | J98: 341 | K98: Itaú Unibanco S.A. | L98: 0869-8 | M98: 12663-1 | N98: N/A | O98: =1%*T95 -> 15000 | P98: 0.1115 | Q98: =O98/(1-P98) -> 16882.38604 | R98: 0.0615 | S98: =+R98*Q98 -> 1038.266742 | T98: =Q98*(1-R98) -> 15844.1193
G99: Retenção de Impostos sobre NFs | T99: =SUM(T100:T100) -> 4153.066967
B100: Retenção de Impostos | G100: Imposto - TForte Participação Ltda | H100: TForte Participação Ltda | I100: 21.567.223/0001-05 | T100: =SUM(S96:S98) -> 4153.066967
B101: Transferência | G101: Fundo de Reserva | H101: Forte Securitizadora S/A | I101: 12.979.898/0001-70 | J101: 341 | K101: Itaú Unibanco S.A. | L101: 0393 | M101: 28259-5 | T101: 78654.42
B102: Transferência | G102: Retenção PMT | H102: Forte Securitizadora S/A | I102: 12.979.898/0001-70 | J102: 341 | K102: Itaú Unibanco S.A. | L102: 0393 | M102: 28259-5 | T102: 25819.96
B103: Transferência | G103: Livre Destinação | H103: BARRETOS COUNTRY EMPREENDIMENTOS IMOBILIARIOS SPE LTDA | I103: 25.144.267/0001-83 | J103: 33 | K103: Santander | L103: 0021 | M103: 130057160 | T103: =T95-T96-T97-T98-T100-T101-T102 -> 1327996.076
B105: Integralização | C105: 481 | D105: 2021-09-27 | E105: 968.9430544 | F105: 1240 | G105: Integralização | T105: =E105*F105 -> 1201489.387
B106: Integralização | C106: 482 | D106: 2021-09-27 | E106: 966.3582015 | F106: 827 | G106: Integralização | T106: =E106*F106 -> 799178.2326
B107: Integralização | C107: Total Dia | G107: Total Integralização | T107: =SUM(T105:T106) -> 2000667.62
B108: Transferência | G108: Fee Estruturação | H108: TForte Participação Ltda | I108: 21.567.223/0001-05 | J108: 341 | K108: Itaú Unibanco S.A. | L108: 0869-8 | M108: 12663-1 | N108: N/A | O108: =0.5%*T107 -> 10003.3381 | P108: 0.1115 | Q108: =O108/(1-P108) -> 11258.68104 | R108: 0.0615 | S108: =R108*Q108 -> 692.4088837 | T108: =Q108*(1-R108) -> 10566.27215
B109: Transferência | G109: Taxa de Sucesso | H109: TForte Participação Ltda | I109: 21.567.223/0001-05 | J109: 341 | K109: Itaú Unibanco S.A. | L109: 0869-8 | M109: 12663-1 | N109: N/A | O109: =2.5%*T107 -> 50016.6905 | P109: 0.1115 | Q109: =O109/(1-P109) -> 56293.40518 | R109: 0.0615 | S109: =R109*Q109 -> 3462.044418 | T109: =Q109*(1-R109) -> 52831.36076
B110: Transferência | G110: Comissão Firme | H110: TForte Participação Ltda | I110: 21.567.223/0001-05 | J110: 341 | K110: Itaú Unibanco S.A. | L110: 0869-8 | M110: 12663-1 | N110: N/A | O110: =1%*T107 -> 20006.6762 | P110: 0.1115 | Q110: =O110/(1-P110) -> 22517.36207 | R110: 0.0615 | S110: =+R110*Q110 -> 1384.817767 | T110: =Q110*(1-R110) -> 21132.5443
G111: Retenção de Impostos sobre NFs | T111: =SUM(T112:T112) -> 5539.27107
B112: Retenção de Impostos | G112: Imposto - TForte Participação Ltda | H112: TForte Participação Ltda | I112: 21.567.223/0001-05 | T112: =SUM(S108:S110) -> 5539.27107
B113: Transferência | G113: Fundo de Reserva | H113: Forte Securitizadora S/A | I113: 12.979.898/0001-70 | J113: 341 | K113: Itaú Unibanco S.A. | L113: 0393 | M113: 28259-5 | T113: 110517.27
B114: Transferência | G114: Retenção PMT | H114: Forte Securitizadora S/A | I114: 12.979.898/0001-70 | J114: 341 | K114: Itaú Unibanco S.A. | L114: 0393 | M114: 28259-5 | T114: 55267.27
B115: Transferência | G115: Livre Destinação | H115: BARRETOS COUNTRY EMPREENDIMENTOS IMOBILIARIOS SPE LTDA | I115: 25.144.267/0001-83 | J115: 33 | K115: Santander | L115: 0021 | M115: 130057160 | T115: =T107-T108-T109-T110-T112-T113-T114 -> 1744813.632
B117: Integralização | C117: 481 | D117: 2021-10-20 | E117: 946.5300861 | F117: 1908 | G117: Integralização | T117: =E117*F117 -> 1805979.404
B118: Integralização | C118: 482 | D118: 2021-10-20 | E118: 939.6716516 | F118: 1271 | G118: Integralização | T118: =E118*F118 -> 1194322.669
B119: Integralização | C119: Total Dia | G119: Total Integralização | T119: =SUM(T117:T118) -> 3000302.073
B120: Transferência | G120: Fee Estruturação | H120: TForte Participação Ltda | I120: 21.567.223/0001-05 | J120: 341 | K120: Itaú Unibanco S.A. | L120: 0869-8 | M120: 12663-1 | N120: N/A | O120: =0.5%*T119 -> 15001.51037 | P120: 0.1115 | Q120: =O120/(1-P120) -> 16884.08595 | R120: 0.0615 | S120: =R120*Q120 -> 1038.371286 | T120: =Q120*(1-R120) -> 15845.71466
B121: Transferência | G121: Taxa de Sucesso | H121: TForte Participação Ltda | I121: 21.567.223/0001-05 | J121: 341 | K121: Itaú Unibanco S.A. | L121: 0869-8 | M121: 12663-1 | N121: N/A | O121: =2.5%*T119 -> 75007.55184 | P121: 0.1115 | Q121: =O121/(1-P121) -> 84420.42975 | R121: 0.0615 | S121: =R121*Q121 -> 5191.85643 | T121: =Q121*(1-R121) -> 79228.57332
B122: Transferência | G122: Comissão Firme | H122: TForte Participação Ltda | I122: 21.567.223/0001-05 | J122: 341 | K122: Itaú Unibanco S.A. | L122: 0869-8 | M122: 12663-1 | N122: N/A | O122: =1%*T119 -> 30003.02073 | P122: 0.1115 | Q122: =O122/(1-P122) -> 33768.1719 | R122: 0.0615 | S122: =+R122*Q122 -> 2076.742572 | T122: =Q122*(1-R122) -> 31691.42933
G123: Retenção de Impostos sobre NFs | T123: =SUM(T124:T124) -> 8306.970288
B124: Retenção de Impostos | G124: Imposto - TForte Participação Ltda | H124: TForte Participação Ltda | I124: 21.567.223/0001-05 | T124: =SUM(S120:S122) -> 8306.970288
B125: Transferência | G125: Fundo de Reserva | H125: Forte Securitizadora S/A | I125: 12.979.898/0001-70 | J125: 341 | K125: Itaú Unibanco S.A. | L125: 0393 | M125: 28259-5 | T125: 180332.88
B126: Transferência | G126: Retenção PMT | H126: Forte Securitizadora S/A | I126: 12.979.898/0001-70 | J126: 341 | K126: Itaú Unibanco S.A. | L126: 0393 | M126: 28259-5 | T126: 84105.4
B127: Transferência | G127: Livre Destinação | H127: BARRETOS COUNTRY EMPREENDIMENTOS IMOBILIARIOS SPE LTDA | I127: 25.144.267/0001-83 | J127: 33 | K127: Santander | L127: 0021 | M127: 130057160 | T127: =T119-T120-T121-T122-T124-T125-T126 -> 2600791.106
B129: Integralização | C129: 481 | D129: 2021-11-24 | E129: 928.1960419 | F129: 1299 | G129: Integralização | T129: =E129*F129 -> 1205726.658
B130: Integralização | C130: 482 | D130: 2021-11-24 | E130: 918.3050022 | F130: 865 | G130: Integralização | T130: =E130*F130 -> 794333.8269
B131: Integralização | C131: Total Dia | G131: Total Integralização | T131: =SUM(T129:T130) -> 2000060.485
B132: Transferência | G132: Fee Estruturação | H132: TForte Participação Ltda | I132: 21.567.223/0001-05 | J132: 341 | K132: Itaú Unibanco S.A. | L132: 0869-8 | M132: 12663-1 | N132: N/A | O132: =0.5%*T131 -> 10000.30243 | P132: 0.1115 | Q132: =O132/(1-P132) -> 11255.26441 | R132: 0.0615 | S132: =R132*Q132 -> 692.1987611 | T132: =Q132*(1-R132) -> 10563.06565
B133: Transferência | G133: Taxa de Sucesso | H133: TForte Participação Ltda | I133: 21.567.223/0001-05 | J133: 341 | K133: Itaú Unibanco S.A. | L133: 0869-8 | M133: 12663-1 | N133: N/A | O133: =2.5%*T131 -> 50001.51213 | P133: 0.1115 | Q133: =O133/(1-P133) -> 56276.32204 | R133: 0.0615 | S133: =R133*Q133 -> 3460.993805 | T133: =Q133*(1-R133) -> 52815.32823
B134: Transferência | G134: Comissão Firme | H134: TForte Participação Ltda | I134: 21.567.223/0001-05 | J134: 341 | K134: Itaú Unibanco S.A. | L134: 0869-8 | M134: 12663-1 | N134: N/A | O134: =1%*T131 -> 20000.60485 | P134: 0.1115 | Q134: =O134/(1-P134) -> 22510.52882 | R134: 0.0615 | S134: =+R134*Q134 -> 1384.397522 | T134: =Q134*(1-R134) -> 21126.13129
G135: Retenção de Impostos sobre NFs | T135: =SUM(T136:T136) -> 5537.590089
B136: Retenção de Impostos | G136: Imposto - TForte Participação Ltda | H136: TForte Participação Ltda | I136: 21.567.223/0001-05 | T136: =SUM(S132:S134) -> 5537.590089
B137: Transferência | G137: Fundo de Reserva | H137: Forte Securitizadora S/A | I137: 12.979.898/0001-70 | J137: 341 | K137: Itaú Unibanco S.A. | L137: 0393 | M137: 28259-5 | T137: =138578.4+28340.09 -> 166918.49
B138: Transferência | G138: Retenção PMT | H138: Forte Securitizadora S/A | I138: 12.979.898/0001-70 | J138: 341 | K138: Itaú Unibanco S.A. | L138: 0393 | M138: 28259-5 | T138: 65642.58
B139: Transferência | G139: Livre Destinação | H139: BARRETOS COUNTRY EMPREENDIMENTOS IMOBILIARIOS SPE LTDA | I139: 25.144.267/0001-83 | J139: 33 | K139: Santander | L139: 0021 | M139: 130057160 | T139: =T131-T132-T133-T134-T136-T137-T138 -> 1677457.3

Sheet Sheet1
A1: 1091698.32
A2: -314804.2696
A3: =SUM(A1:A2) -> 776894.0504
